bitfinex/quotes_ETHUSD_20240910
["timestamp","ask_amount","ask_price","bid_price","bid_amount"]
[1725996759983,2.2827,2373.9,2373.7,4.21275]
[1725996760389,2.2827,2373.9,2373.8,4.21265]
[1725996761130,2.2827,2374.1,2373.9,4.21241]
[1725996761331,2.2827,2374.1,2373.9,4.29632128]
[1725996761496,2.2827,2374.1,2374.0,4.64192213]
[1725996761699,2.2827,2374.3,2374.1,4.21204]
[1725996762605,2.2827,2374.3,2374.1,4.21203]
[1725996764702,2.2827,2374.3,2374.1,8.42407]
[1725996765033,1.30590896,2374.5,2374.4,4.21159]
[1725996765198,1.30590896,2374.7,2374.4,4.21159]
[1725996765731,0.10528159,2374.7,2374.4,4.21159]
[1725996766145,2.4042,2374.6,2374.2,4.21183]
[1725996766432,2.4042,2374.4,2374.0,8.42456]
[1725996766589,2.4042,2374.4,2374.0,4.21228]
[1725996766590,0.1052985,2374.3,2374.0,4.21228]
[1725996766789,2.5094985,2374.4,2374.0,4.2122]
[1725996766990,0.55,2374.3,2374.0,4.2122]
[1725996767738,2.50950481,2374.2,2373.6,4.21288]
[1725996767899,2.4042,2374.0,2373.6,4.21288]
[1725996768088,2.50951718,2374.0,2373.6,8.42573]
[1725996768444,2.50951718,2374.0,2373.8,4.21264]
[1725996768592,2.4042,2374.0,2373.8,4.21264]
[1725996769831,2.4042,2374.0,2373.7,4.21282]
[1725996770020,2.4042,2374.0,2373.6,4.21285]
[1725996770638,2.4042,2374.0,2373.7,4.21272]
[1725996770843,3.10531479,2374.1,2373.7,4.21272]
[1725996771152,3.10531479,2374.1,2373.9,4.21245]
[1725996771153,3.0,2374.1,2373.9,4.21245]
[1725996771335,2.4042,2374.2,2373.9,4.21245]
[1725996771807,2.4042,2374.2,2373.9,4.21239]
[1725996772310,2.4042,2374.2,2374.0,4.21229]
[1725996772635,2.4042,2374.2,2373.7,4.29658025]
[1725996772817,2.4042,2374.2,2373.8,0.08391025]
[1725996773021,2.4042,2374.2,2373.9,4.21246]
[1725996775308,1.30590896,2374.4,2374.2,4.21184]
[1725996775560,9.7782,2374.5,2374.3,0.421184]
[1725996775561,2.2882,2374.5,2374.3,0.421184]
[1725996775852,3.59410896,2374.7,2374.2,4.29571017]
[1725996776057,3.69939654,2374.7,2374.2,4.29571017]
[1725996776215,2.39348758,2374.7,2374.4,4.21157]
[1725996776413,0.10528758,2374.7,2374.4,4.21157]
[1725996776714,1.41119644,2374.8,2374.4,4.21157]
[1725996776941,0.65528748,2374.7,2374.4,4.21157]
[1725996777246,0.65528748,2374.7,2374.4,4.21149]
[1725996777247,3.65528748,2374.7,2374.4,4.21149]
[1725996777422,0.65528748,2374.7,2374.4,4.21149]
[1725996778653,0.65528748,2374.7,2374.4,4.21148]
[1725996779060,2.3477,2374.6,2374.2,4.21182]
[1725996779281,5.3477,2374.6,2374.3,4.21165]
[1725996779669,5.3477,2374.6,2374.2,8.42369]
[1725996779827,5.3477,2374.6,2374.3,4.21169]
[1725996780236,5.3646092,2374.6,2374.3,4.21169]
[1725996780672,5.3646092,2374.6,2374.2,4.29569]
[1725996780673,9.68115163,2374.6,2374.2,4.21191]
[1725996781151,5.46990163,2374.6,2374.2,4.21191]
[1725996781350,2.4302,2374.3,2374.0,4.21221]
[1725996781741,2.4302,2374.3,2374.0,4.633431]
[1725996781950,2.4302,2374.3,2374.0,4.633421]
[1725996782137,2.4302,2374.3,2374.0,4.2122]
[1725996782349,0.10530227,2374.2,2373.8,4.29642521]
[1725996782536,2.4302,2374.1,2373.8,4.21252]
[1725996784083,2.4302,2374.1,2373.6,4.2129]
[1725996784084,0.1053134,2374.0,2373.7,4.2128]
[1725996784269,2.53551346,2374.1,2373.7,4.2128]
[1725996785063,2.53551346,2374.1,2373.8,4.21263]
[1725996785279,2.5487134,2374.0,2373.5,0.08393192]
[1725996785631,2.5487134,2374.0,2373.6,8.42581]
[1725996785906,2.5487134,2374.0,2373.6,4.2129]
[1725996786373,2.5487134,2374.0,2373.4,4.29718898]
[1725996786374,2.4434,2374.0,2373.8,4.21261]
[1725996787308,3.0,2374.1,2373.8,4.21256]
[1725996787512,5.40130939,2374.2,2373.7,4.29675871]
[1725996787669,9.61333939,2374.2,2373.7,4.29675871]
[1725996788011,2.296,2373.8,2373.4,8.42651]
[1725996788174,2.296,2373.8,2373.5,4.21318]
[1725996788373,3.0,2373.9,2373.6,4.21297]
[1725996788808,3.0,2374.0,2373.6,4.21291]
[1725996789212,3.10531525,2374.0,2373.6,4.21291]
[1725996789970,7.31768525,2374.0,2373.5,4.21318]
[1725996790166,7.31768525,2374.0,2373.4,4.21326]
[1725996790473,4.21266,2373.8,2373.2,4.21359]
[1725996790666,4.31818818,2373.7,2373.2,4.21359]
[1725996790869,2.296,2373.6,2373.3,4.21348]
[1725996791078,0.65532818,2373.7,2373.3,4.21348]
[1725996791334,3.65532818,2373.7,2373.2,4.29756828]
[1725996791464,4.96123714,2373.7,2373.2,4.29756828]
[1725996791670,4.96123714,2373.7,2373.2,8.51117828]
[1725996791914,4.96123714,2373.7,2373.2,4.29756828]
[1725996792084,1.30590896,2373.7,2373.3,2.37157602]
[1725996792286,8.79590896,2374.1,2373.6,4.213]
[1725996792495,1.30590896,2374.2,2373.9,4.21234]
[1725996792672,1.30590896,2374.3,2373.9,4.21234]
[1725996792872,5.63970962,2374.4,2373.9,4.21234]
[1725996793072,1.30590896,2374.3,2373.9,8.42471]
[1725996793275,1.30590896,2374.3,2373.9,4.21234]
[1725996793473,1.30590896,2374.3,2373.9,8.4247]
[1725996793675,0.0169092,2374.4,2374.2,4.00499144]
[1725996793925,0.0169092,2374.4,2374.3,8.50737598]
[1725996795276,9.2e-06,2374.4,2374.3,22.30197959]
[1725996795500,0.0282799,2374.9,2374.8,8.42176]
[1725996795706,0.0282799,2374.9,2374.8,14.87925144]
[1725996795916,0.0282799,2374.9,2374.8,19.09013144]
[1725996796241,0.0282799,2374.9,2374.8,20.0042418]
[1725996796381,0.0282799,2374.9,2374.8,22.25854981]
[1725996796576,0.0282799,2374.9,2374.8,24.51547742]
[1725996796777,0.0282799,2374.9,2374.8,23.14441042]
[1725996797082,0.0282799,2375.4,2374.8,23.14441042]
[1725996797083,0.0282799,2375.4,2375.3,15.08247]
[1725996797424,0.0282799,2375.4,2375.3,19.08746144]
[1725996797576,0.0282799,2375.4,2375.3,20.99620758]
[1725996797776,0.0282799,2375.4,2375.3,25.20619758]
[1725996797974,0.0282799,2375.4,2375.3,20.99620758]
[1725996798226,0.0282799,2375.4,2375.3,26.10629124]
[1725996798227,9.9e-06,2375.4,2375.3,26.10629124]
[1725996798391,9.9e-06,2375.4,2375.3,30.01792636]
[1725996798572,9.9e-06,2375.4,2375.3,29.10629124]
[1725996798773,9.9e-06,2375.4,2375.3,30.0166929]
[1725996799024,9.9e-06,2375.4,2375.3,29.10629124]
[1725996800733,9.9e-06,2375.4,2375.3,24.89630124]
[1725996800893,9.9e-06,2375.4,2375.3,29.10629124]
[1725996801227,9.9e-06,2375.4,2375.3,24.89630124]
[1725996801688,9.9e-06,2375.4,2375.3,17.68631124]
[1725996801891,9.9e-06,2375.4,2375.3,21.89630124]
[1725996802192,9.9e-06,2376.0,2375.9,18.37362]
[1725996802397,0.0282799,2376.5,2376.4,8.41608]
[1725996802398,9.8e-06,2376.5,2376.4,8.41608]
[1725996802801,9.8e-06,2376.5,2376.4,4.20804]
[1725996803003,9.8e-06,2376.5,2376.3,4.20811]
[1725996803223,9.8e-06,2376.5,2376.4,4.20804]
[1725996803392,4.2353299,2377.0,2376.3,4.2081]
[1725996803393,4.20705,2377.0,2376.3,4.2081]
[1725996803607,4.2063,2377.4,2376.6,4.20759]
[1725996803608,4.2068,2377.2,2376.6,4.20759]
[1725996803805,3.0,2377.1,2376.6,4.20759]
[1725996804125,4.2412602,2377.4,2376.8,4.2073]
[1725996804506,0.10517306,2377.3,2376.8,4.2073]
[1725996804836,0.0348802,2377.4,2377.0,4.9050851]
[1725996805019,0.0348802,2377.4,2377.3,4.20645]
[1725996805394,0.0348802,2377.4,2377.3,20.09666649]
[1725996805812,0.0348802,2377.4,2377.3,15.89021649]
[1725996806016,0.0348802,2377.4,2377.3,6.29967904]
[1725996806194,2.2864802,2377.4,2377.0,4.20695]
[1725996806521,2.2864802,2377.4,2377.0,4.20689]
[1725996807229,2.39164489,2377.4,2377.0,4.20689]
[1725996807529,2.2864802,2377.4,2377.0,4.20689]
[1725996808115,2.2864802,2377.4,2377.0,4.20688]
[1725996808312,2.2864802,2377.4,2377.3,4.20645]
[1725996808313,0.0348802,2377.4,2377.3,4.20645]
[1725996808532,0.0348802,2377.4,2377.3,8.49643369]
[1725996808743,0.0348802,2377.4,2377.3,4.28998369]
[1725996810522,0.0348802,2377.4,2377.0,2.4147]
[1725996810523,0.0348802,2377.4,2377.0,4.20685]
[1725996810734,0.0348802,2377.4,2376.9,4.29061538]
[1725996811035,0.0348802,2377.4,2377.0,0.0835722]
[1725996811240,3.0348802,2377.4,2377.0,4.2905422]
[1725996811567,3.0348802,2377.4,2377.0,0.0835722]
[1725996811926,4.20675,2377.2,2376.4,4.20787]
[1725996812135,2.4492,2377.3,2376.4,4.20789]
[1725996812136,6.6563,2377.0,2376.4,4.20789]
[1725996812388,6.76149106,2377.0,2376.5,0.0836383]
[1725996812667,4.20738,2376.8,2376.3,4.2082]
[1725996812838,4.20738,2376.8,2376.3,4.29184579]
[1725996812839,4.31257418,2376.8,2376.3,4.29184579]
[1725996813036,0.10519418,2376.8,2376.3,4.29184579]
[1725996813245,4.31254418,2376.8,2376.3,0.93365337]
[1725996813439,4.2076,2376.7,2376.0,4.20865]
[1725996813758,4.2076,2376.7,2376.2,4.20838]
[1725996813759,8.4152,2376.7,2376.2,4.20838]
[1725996814067,4.2076,2376.7,2376.2,4.20838]
[1725996814428,4.2076,2376.7,2376.3,0.08364833]
[1725996815058,0.10519556,2376.8,2376.3,4.29184833]
[1725996815262,3.10519556,2376.8,2376.3,5.14186316]
[1725996816096,4.20754,2376.7,2376.3,0.93366316]
[1725996816239,4.20754,2376.7,2376.2,4.29199638]
[1725996816435,4.20754,2376.7,2376.3,0.08364638]
[1725996816774,3.10519556,2376.8,2375.9,4.4503]
[1725996816775,4.31289442,2376.6,2375.9,4.4503]
[1725996816975,4.20827,2376.3,2375.8,4.209]
[1725996817269,0.10521654,2376.2,2375.8,0.08369945]
[1725996817478,7.49,2376.7,2376.3,4.20812]
[1725996817679,2.4283,2376.8,2376.3,4.20812]
[1725996817879,2.53349437,2376.8,2376.4,4.20798]
[1725996818085,3.0,2376.7,2376.4,4.20798]
[1725996818666,3.0,2376.7,2376.3,4.29185631]
[1725996818866,3.0,2376.7,2376.4,4.20802]
[1725996819075,5.53349433,2376.8,2376.4,4.20794]
[1725996820052,5.53349433,2376.8,2376.5,4.20783]
[1725996820053,5.4283,2376.8,2376.5,4.20783]
[1725996820455,9.63572,2376.8,2376.3,5.05821763]
[1725996820754,5.4283,2376.8,2376.4,4.20803]
[1725996821057,5.53349404,2376.8,2376.4,4.20803]
[1725996821883,5.53349404,2376.8,2376.4,8.41597]
[1725996822081,5.53349404,2376.8,2376.4,4.20794]
[1725996822576,5.53349404,2376.8,2376.4,4.20792]
[1725996822778,9.74085404,2376.8,2376.4,4.20792]
[1725996823559,5.53349404,2376.8,2376.4,4.20792]
[1725996823802,5.53349404,2376.8,2376.5,4.20778]
[1725996824012,5.4283,2376.8,2376.4,8.41588]
[1725996824302,5.53349407,2376.8,2376.4,8.41587]
[1725996824612,5.53349407,2376.8,2376.4,4.20792]
[1725996824997,5.4283,2376.8,2376.6,4.20759]
[1725996825299,5.4283,2376.8,2376.7,4.20751]
[1725996825300,2.4283,2376.8,2376.7,4.20751]
[1725996825485,6.58641991,2377.1,2376.6,8.41519]
[1725996826408,2.2744,2377.1,2376.8,4.2073]
[1725996826763,9.48122,2377.1,2376.7,4.29108525]
[1725996826959,5.2744,2377.1,2376.7,4.29104525]
[1725996828973,4.20716,2376.9,2376.5,4.20772]
[1725996829174,4.31234574,2376.9,2376.5,4.20772]
[1725996829565,2.3171,2376.6,2376.2,4.20829]
[1725996829764,2.3171,2376.6,2376.3,4.2081]
[1725996830000,2.3171,2376.6,2376.3,4.29174496]
[1725996830408,2.3171,2376.6,2376.3,4.2081]
[1725996832310,2.3171,2376.6,2376.3,5.049739]
[1725996832816,2.3171,2376.6,2376.3,5.13338518]
[1725996834895,2.3171,2376.6,2376.3,5.049739]
[1725996835333,0.10519383,2376.7,2376.4,4.20802]
[1725996835632,0.10519383,2376.7,2376.3,5.049829]
[1725996835929,0.10519383,2376.7,2376.3,4.20819]
[1725996836098,0.10519383,2376.7,2376.3,8.4163]
[1725996836304,0.10519383,2376.7,2376.3,4.20811]
[1725996836546,0.10519383,2376.7,2376.3,8.41624]
[1725996837004,0.10519383,2376.7,2376.3,4.20811]
[1725996837206,0.10519383,2376.7,2376.3,8.41625]
[1725996838402,0.10519383,2376.7,2376.3,9.257875]
[1725996838848,0.10519383,2376.7,2376.3,5.049735]
[1725996838995,0.10519383,2376.7,2376.4,4.208]
[1725996839189,3.10519454,2376.8,2376.4,4.208]
[1725996840014,0.10519455,2376.7,2376.5,4.20786]
[1725996840216,0.10519455,2376.7,2376.4,4.208]
[1725996841004,3.10519457,2376.8,2376.4,4.20791]
[1725996841342,7.49,2377.1,2376.8,4.20733]
[1725996841536,0.0348802,2377.4,2377.3,4.20645]
[1725996841751,0.0348802,2377.4,2377.3,15.11025]
[1725996842128,0.0348802,2377.4,2377.3,10.9038]
[1725996842353,0.0348802,2377.4,2377.3,12.81333783]
[1725996843665,0.0348802,2377.4,2377.3,10.32243783]
[1725996843812,0.0348802,2377.4,2377.3,8.4129]
[1725996846928,0.0348802,2377.4,2377.3,4.20645]
[1725996847364,0.0348802,2377.4,2377.0,4.20683]
[1725996847663,0.0348802,2377.4,2376.3,6.40857339]
[1725996847664,2.475,2377.1,2376.7,4.29090346]
[1725996847968,4.20716,2376.9,2376.4,1.08697367]
[1725996848266,4.31217873,2377.0,2376.5,4.20784]
[1725996848572,4.31217873,2377.0,2376.3,4.2081]
[1725996848573,4.20752,2376.7,2376.1,4.2920473]
[1725996848757,4.20723,2376.9,2376.1,0.0836073]
[1725996848758,3.0,2376.9,2376.1,0.0836073]
[1725996848936,3.0,2376.9,2376.5,4.20777]
[1725996849125,3.10519441,2377.0,2376.6,4.20767]
[1725996849564,4.20727,2376.9,2376.5,0.420777]
[1725996849725,3.0,2376.8,2376.4,4.20792]
[1725996851986,3.0,2376.8,2376.5,4.20785]
[1725996852270,2.475,2377.1,2376.7,4.2075]
[1725996852637,4.20701,2377.0,2376.6,4.628365]
[1725996852855,9.68189,2377.1,2376.2,4.20827]
[1725996852856,4.31234769,2376.9,2376.2,4.20827]
[1725996853184,4.31234769,2376.9,2375.6,1.32296804]
[1725996853185,4.20791,2376.5,2376.0,4.20866]
[1725996853344,4.20791,2376.5,2376.1,4.629396]
[1725996853673,4.20791,2376.5,2376.1,0.420866]
[1725996853883,4.20849,2376.2,2375.7,4.20914]
[1725996854161,4.20849,2376.2,2375.8,4.2091]
[1725996854362,4.20831,2376.3,2375.8,8.41812]
[1725996854363,4.20823,2376.3,2375.8,8.41812]
[1725996854567,4.31325597,2376.4,2375.9,5.13431933]
[1725996854777,3.0,2376.3,2375.9,5.13431933]
[1725996854940,2.3481,2376.6,2375.9,5.13431933]
[1725996854941,3.0,2376.4,2376.1,4.20841]
[1725996855272,9.5558,2376.6,2376.0,4.72209193]
[1725996855477,9.5558,2376.6,2376.2,4.20838]
[1725996855647,4.20795,2376.5,2376.1,0.56475913]
[1725996855979,4.20805,2376.4,2376.0,4.29232931]
[1725996857235,9.5558,2376.6,2376.1,4.20855]
[1725996857732,13.76363,2376.6,2376.1,4.20855]
[1725996857971,13.76363,2376.6,2376.1,5.05865495]
[1725996858185,4.20795,2376.5,2376.1,0.85010495]
[1725996858476,4.20795,2376.5,2376.0,4.29240951]
[1725996858979,13.7636,2376.6,2376.1,4.20848]
[1725996859162,9.5558,2376.6,2376.1,4.20848]
[1725996859532,5.3481,2376.6,2376.2,0.08366315]
[1725996859972,5.3481,2376.6,2376.2,4.29203315]
[1725996860372,3.0,2376.6,2376.2,4.29203315]
[1725996860579,4.20744,2376.8,2376.4,4.20803]
[1725996860801,3.0,2376.7,2376.4,4.20803]
[1725996861015,3.0,2376.8,2376.4,8.41597]
[1725996861313,3.0,2376.8,2376.4,4.72074876]
[1725996861600,3.0,2376.8,2376.5,4.20781]
[1725996861804,3.0,2376.8,2376.5,0.08362303]
[1725996862274,7.20739,2376.8,2376.5,0.08362303]
[1725996864418,3.55680896,2377.2,2376.5,0.55569613]
[1725996864565,1.34078916,2377.4,2377.3,4.20645]
[1725996864772,1.34078916,2377.4,2377.3,8.4129]
[1725996864773,0.0348802,2377.4,2377.3,8.4129]
[1725996865001,1.74121195,2378.1,2377.6,4.20584]
[1725996865002,1.30590896,2378.1,2377.6,4.20584]
[1725996865324,0.026504,2378.0,2377.7,4.70973555]
[1725996865601,0.026504,2378.0,2377.8,4.20556]
[1725996865801,0.026504,2378.0,2377.8,4.20548]
[1725996865960,0.026504,2378.0,2377.8,8.41093]
[1725996865961,0.0884984,2378.0,2377.8,8.41093]
[1725996866166,0.0884984,2378.0,2377.8,4.20546]
[1725996866469,0.0884984,2378.0,2377.8,5.3380224]
[1725996867563,0.0884984,2378.0,2377.8,9.5434924]
[1725996867764,0.0884984,2378.0,2377.8,5.3379624]
[1725996868396,0.0884984,2378.0,2377.9,8.41078]
[1725996868596,0.0884984,2378.0,2377.9,12.69960091]
[1725996868809,0.0884984,2378.0,2377.9,14.12486864]
[1725996871724,0.0884984,2378.0,2377.9,19.02484138]
[1725996872421,0.0884984,2378.0,2377.9,25.66583138]
[1725996872587,0.026504,2378.5,2378.4,4.2045]
[1725996872784,0.026504,2379.0,2378.4,4.2045]
[1725996872785,0.026504,2379.0,2378.9,8.40724]
[1725996873024,0.026504,2379.0,2378.9,19.94643274]
[1725996873240,4e-06,2379.0,2378.9,24.15005274]
[1725996873528,0.026504,2379.4,2379.3,4.20291]
[1725996873685,0.026504,2379.4,2379.3,17.50870274]
[1725996875190,0.026504,2379.4,2379.3,8.40582]
[1725996875780,0.026504,2379.4,2379.3,12.60873]
[1725996875985,0.026504,2379.4,2379.3,18.77790278]
[1725996876313,0.026504,2379.4,2379.3,25.40951278]
[1725996876624,0.026504,2379.4,2379.3,28.40951278]
[1725996876983,0.026504,2379.4,2379.3,12.10372004]
[1725996877212,0.026504,2379.4,2379.3,16.30663004]
[1725996877397,0.026504,2379.4,2379.3,17.00369278]
[1725996878099,0.026504,2379.4,2379.3,21.20660278]
[1725996878303,0.026504,2379.4,2379.3,25.40951278]
[1725996878506,0.026504,2379.9,2379.3,25.40951278]
[1725996878507,4e-06,2379.9,2379.8,19.18512]
[1725996878819,4e-06,2379.9,2379.8,13.78106]
[1725996879427,4e-06,2379.9,2379.8,8.40406]
[1725996879585,4e-06,2379.9,2379.8,8.48729322]
[1725996879789,4e-06,2379.9,2379.8,10.24625182]
[1725996880010,4e-06,2379.9,2379.8,6.04422182]
[1725996880238,4e-06,2379.9,2379.8,10.24625182]
[1725996881190,4e-06,2379.9,2379.8,14.44828182]
[1725996881391,4e-06,2379.9,2379.8,10.24625182]
[1725996882794,4e-06,2379.9,2379.8,14.44828182]
[1725996883611,4e-06,2379.9,2379.8,16.75588182]
[1725996884225,4e-06,2379.9,2379.8,20.95791182]
[1725996884425,4e-06,2379.9,2379.8,24.98283516]
[1725996884913,0.026504,2380.4,2379.8,7.69979182]
[1725996885117,0.026504,2380.4,2380.3,8.4023]
[1725996885650,0.026504,2380.4,2380.3,8.48546657]
[1725996885865,0.026504,2380.4,2379.9,6.90008352]
[1725996885866,0.026504,2380.4,2379.9,2.69828352]
[1725996886007,0.026504,2380.4,2380.0,4.20158]
[1725996886206,2.3366,2380.5,2379.6,0.08322384]
[1725996886207,4.20136,2380.2,2379.6,0.08322384]
[1725996886549,2.3366,2380.5,2379.6,0.08322384]
[1725996886550,0.10501837,2380.4,2379.9,4.20182]
[1725996886840,4.20123,2380.3,2379.8,0.08327146]
[1725996887404,4.20123,2380.3,2379.8,4.28520146]
[1725996888029,2.4885,2380.1,2379.7,4.20209]
[1725996888229,2.4885,2380.1,2379.9,4.20181]
[1725996888496,0.12359024,2380.6,2380.0,0.08327157]
[1725996888497,0.018552,2380.6,2380.0,0.08327157]
[1725996888744,4.219172,2380.6,2380.1,8.40277]
[1725996888947,0.018552,2380.6,2380.2,0.93182118]
[1725996889246,0.018552,2380.6,2380.4,4.20096]
[1725996889454,0.018552,2380.6,2380.5,0.08321206]
[1725996889749,0.018552,2380.6,2380.5,4.28400206]
[1725996890048,0.018552,2380.6,2380.5,0.93169827]
[1725996890616,0.018552,2380.6,2380.5,9.33327827]
[1725996890823,0.018552,2380.6,2380.5,8.48479206]
[1725996891038,0.018552,2380.6,2380.5,8.40158]
[1725996891254,0.018552,2380.6,2380.5,8.48475117]
[1725996892032,0.018552,2380.6,2380.5,4.28396117]
[1725996892236,0.018552,2380.6,2380.5,13.11393729]
[1725996892762,0.018552,2380.6,2380.5,8.91314729]
[1725996893573,0.036496,2381.2,2381.1,4.19973]
[1725996893857,0.036496,2381.2,2381.1,8.39946]
[1725996894520,0.036496,2381.2,2381.1,12.68229874]
[1725996894718,0.036496,2381.2,2381.1,14.61451061]
[1725996894961,0.036496,2381.2,2381.1,23.71421335]
[1725996895323,0.036496,2381.9,2381.8,15.0353]
[1725996895536,0.036496,2381.9,2381.8,10.8368]
[1725996895738,0.036496,2381.9,2381.8,5.28218]
[1725996896285,0.036496,2381.9,2381.8,5.36523744]
[1725996896568,0.036496,2381.9,2381.8,1.16673744]
[1725996896758,0.036496,2381.9,2381.5,4.19893]
[1725996896958,0.036496,2381.9,2381.6,0.08307863]
[1725996897163,0.036496,2381.9,2381.6,4.28192863]
[1725996897462,0.036496,2381.9,2381.6,0.08307863]
[1725996897660,2.447496,2381.9,2381.6,0.08307863]
[1725996897965,2.55245416,2381.9,2381.5,8.48092934]
[1725996898173,2.447496,2381.9,2381.5,4.70189234]
[1725996899260,2.447496,2381.9,2381.6,4.1987]
[1725996899471,2.447496,2381.9,2381.7,5.08872923]
[1725996900359,2.447496,2381.9,2381.7,0.89005923]
[1725996900883,4.3035999,2381.8,2381.3,4.19933]
[1725996901241,4.3035999,2381.8,2381.3,4.28243875]
[1725996901440,4.19876,2381.7,2381.3,0.08310875]
[1725996901675,8.39758,2381.7,2381.3,0.08310875]
[1725996901885,4.19899,2381.6,2381.1,0.0831101]
[1725996902126,4.19899,2381.6,2381.1,4.19957]
[1725996902298,8.39801,2381.6,2381.1,4.19957]
[1725996902580,4.19929,2381.4,2380.9,4.19992]
[1725996902776,0.1049826,2381.3,2380.9,4.619915]
[1725996902988,0.1049826,2381.3,2380.5,4.62907612]
[1725996902989,2.3092,2381.0,2380.5,4.62907612]
[1725996903146,2.41419727,2381.0,2380.6,0.46290761]
[1725996903341,6.50913,2381.0,2380.5,4.20068]
[1725996903544,6.50913,2381.0,2380.6,0.420068]
[1725996903747,6.50913,2381.0,2380.1,4.20141]
[1725996903748,4.20034,2380.8,2380.1,4.20141]
[1725996904044,4.20034,2380.8,2379.5,2.2711]
[1725996904045,0.10501957,2380.7,2380.2,4.20123]
[1725996904266,4.20065,2380.6,2380.3,0.420123]
[1725996904483,2.58392091,2380.5,2379.9,4.20173]
[1725996904663,6.78481091,2380.5,2380.0,0.840368]
[1725996905252,2.4789,2380.5,2380.2,4.2013]
[1725996905455,2.4789,2380.5,2380.2,4.20122]
[1725996905686,2.4789,2380.5,2380.3,0.42844797]
[1725996906478,2.4789,2380.5,2380.3,4.71271477]
[1725996906684,2.3702196,2380.9,2380.3,4.71271477]
[1725996906841,2.2652,2380.9,2380.3,4.71271477]
[1725996907038,2.2652,2380.9,2380.4,0.47127148]
[1725996907264,2.2652,2380.9,2380.5,4.28396427]
[1725996908096,2.2652,2380.9,2380.5,0.08319427]
[1725996908738,2.2652,2380.9,2380.6,4.20059]
[1725996909956,2.2652,2380.9,2380.5,0.08319427]
[1725996910156,2.37020125,2380.9,2380.2,4.20124]
[1725996910358,4.30539589,2380.8,2380.3,4.28429791]
[1725996910695,4.30559591,2380.7,2380.0,4.20153]
[1725996910905,6.55067,2380.4,2380.0,0.420153]
[1725996911092,6.55067,2380.4,2379.9,0.08326167]
[1725996911248,4.20143,2380.2,2379.6,4.20224]
[1725996911448,4.20132,2380.2,2379.7,4.70560993]
[1725996911755,4.30636413,2380.2,2379.7,0.50350993]
[1725996911962,4.20178,2380.0,2379.4,8.4053]
[1725996912291,4.20178,2380.0,2379.3,0.036496]
[1725996912292,2.4914,2379.9,2379.3,0.036496]
[1725996912493,4.30725506,2379.8,2379.3,0.036496]
[1725996912700,4.20239,2379.6,2379.3,0.036496]
[1725996912842,4.20268,2379.5,2379.3,0.036496]
[1725996913046,10.89688,2379.4,2379.3,0.036496]
[1725996913246,15.09962,2379.4,2379.3,0.036496]
[1725996913774,18.64962,2379.4,2379.3,0.036496]
[1725996913979,2.4914,2378.7,2378.6,0.036496]
[1725996914161,6.80048727,2378.7,2378.6,0.036496]
[1725996915179,4.20351,2379.0,2378.6,0.036496]
[1725996915394,4.20285,2379.4,2378.8,4.20379]
[1725996915542,4.20285,2379.4,2378.9,0.50374895]
[1725996915543,0.10507925,2379.4,2378.9,0.50374895]
[1725996915739,0.10507925,2379.4,2378.9,0.08336995]
[1725996915943,0.10507925,2379.4,2378.8,4.20368]
[1725996916139,4.30787925,2379.4,2378.8,4.20368]
[1725996916389,4.30787925,2379.4,2378.8,0.8527633]
[1725996916539,4.30787925,2379.4,2378.8,0.93614513]
[1725996916991,4.20295,2379.3,2378.8,0.8527633]
[1725996917148,8.51073925,2379.4,2378.8,0.93614515]
[1725996917351,4.30787925,2379.4,2378.8,0.08338185]
[1725996918044,4.30787925,2379.4,2378.8,4.28717185]
[1725996918471,4.30787925,2379.4,2378.7,4.28731193]
[1725996918859,4.20293,2379.3,2378.7,4.28731193]
[1725996919252,0.10508603,2379.2,2378.6,4.32392223]
[1725996919479,0.10508603,2379.2,2378.8,4.20364]
[1725996919677,0.10508603,2379.2,2378.7,4.20386]
[1725996919888,0.10508603,2379.2,2378.8,4.20367]
[1725996920071,2.302,2379.5,2379.3,4.2029]
[1725996920272,0.93588295,2380.4,2379.3,4.2029]
[1725996920273,2.3115,2379.9,2379.3,4.2029]
[1725996920442,2.41655773,2379.9,2379.4,0.08331831]
[1725996920775,2.41655773,2379.9,2379.6,4.20237]
[1725996920987,2.41655773,2379.9,2379.4,0.42862183]
[1725996921184,2.41655773,2379.9,2379.1,4.20315]
[1725996921185,0.10506846,2379.8,2379.1,4.20315]
[1725996921871,0.10506846,2379.8,2379.0,0.08334042]
[1725996921872,4.20248,2379.6,2379.0,4.28673042]
[1725996922059,4.30719842,2379.8,2379.1,4.20322]
[1725996922259,4.30719842,2379.8,2379.3,4.2029]
[1725996923589,2.3115,2379.9,2379.5,4.20255]
[1725996924426,4.20145,2380.2,2379.5,4.20255]
[1725996924427,6.63143,2380.2,2379.5,4.20255]
[1725996924624,0.10505384,2380.1,2379.6,4.63093589]
[1725996925392,6.63142,2380.2,2379.7,4.20203]
[1725996925393,6.73647077,2380.2,2379.7,4.20203]
[1725996926326,6.73647077,2380.2,2379.6,0.42858589]
[1725996926632,4.20204,2379.8,2379.3,4.20291]
[1725996926781,6.73729726,2379.7,2379.2,4.20293]
[1725996927106,2.53506726,2379.7,2379.2,4.20293]
[1725996927417,0.10506805,2379.9,2379.4,4.20263]
[1725996927916,4.20203,2379.8,2379.3,4.2028]
[1725996928080,0.10506586,2379.7,2379.3,4.2028]
[1725996928680,4.30729586,2379.7,2379.2,4.65535831]
[1725996928913,4.30729586,2379.7,2379.0,8.64433]
[1725996928914,6.63266,2379.5,2379.0,8.64433]
[1725996929185,3.0,2380.1,2378.6,2.413596]
[1725996929186,6.63212,2379.8,2379.3,4.20283]
[1725996929524,3.10506588,2379.7,2379.4,0.420283]
[1725996929679,3.10506588,2379.7,2379.3,4.2028]
[1725996929879,3.10506588,2379.7,2379.4,4.20261]
[1725996930128,2.53506496,2379.8,2379.4,4.20261]
[1725996930281,2.43,2379.8,2379.5,4.20255]
[1725996930486,0.105054,2380.0,2379.6,4.20229]
[1725996930697,2.535054,2380.1,2379.7,4.2022]
[1725996930923,2.535054,2380.1,2379.5,4.28574936]
[1725996930924,2.535054,2380.1,2379.5,8.40483]
[1725996931244,2.535054,2380.1,2379.5,5.1269271]